Cogmind - Beta 13 @@@ ROGUE MODE // 2024.07.16 @ 18:03:16 Player: Berg Result: Destroyed by S-10 Pest with Light Assault Rifle Performance ------------- Evolutions (0) 0 Regions Visited (2) 400 Robots Destroyed (24) 120 Value Destroyed (397) 397 Prototype IDs (0) 0 Alien Tech Used (0) 0 Bonus (0) 0 TOTAL SCORE: 917 Bonus ------- None Cogmind --------- Core Integrity 0/250 Matter 282/300 Energy 191/200 System Corruption 0% Temperature Cool (0) Movement Treading (240) Ox1 Location -10/Subcaves Parts ------- > --- POWER (1) -------- Subdweller Power Source > --- PROPULSION (2) --- Light Treads Light Treads > --- UTILITY (2) ------ High-capacity Storage Unit Signal Interpreter > --- WEAPON (2) ------- Small Laser Subdweller Machine Gun > --- INVENTORY (20) --- Ion Engine Light Ion Engine Subdweller Power Source Light Treads Light Treads Light Treads Compact Wheel High-capacity Matter Pod (200) Visual Processing Unit Light Assault Rifle Light Assault Rifle Battle Cannon Peak State ------------ > --- POWER ------------ Subdweller Power Source > --- PROPULSION ------- Light Treads Light Treads > --- UTILITY ---------- High-capacity Storage Unit Signal Interpreter > --- WEAPON ----------- Small Laser Subdweller Machine Gun > --- INVENTORY -------- Ion Engine Light Ion Engine Light Treads Light Treads Light Treads Compact Wheel High-capacity Matter Pod Visual Processing Unit Light Assault Rifle Light Assault Rifle [Rating: 10] Favorites ----------- Power Ion Engine Engine Ion Engine Propulsion Light Treads Treads Light Treads Utility High-capacity Storage Unit Device Seismic Detector Storage High-capacity Storage Unit Processor Signal Interpreter Weapon Light Assault Rifle Energy Gun Small Laser Ballistic Gun Light Assault Rifle Build | -11 -10 -10 ------- Run | Yrd Mat Sub Slots Evolved . | . . . Power . | . . . Propulsion . | . . . Utility . | . . . Weapon . | . . . Parts Attached 18 | 7 7 4 Power 5 | 1 2 2 Engine 5 | 1 2 2 Core . | . . . Reactor . | . . . Propulsion 4 | 2 2 . Treads 4 | 2 2 . Leg . | . . . Wheel . | . . . Hover . | . . . Flight . | . . . Utility 4 | 2 2 . Device 1 | 1 . . Storage 2 | 1 1 . Processor 1 | . 1 . Hackware . | . . . Protection . | . . . Artifact . | . . . Weapon 5 | 2 1 2 Energy Gun 1 | . . 1 Energy Cannon . | . . . Ballistic Gun 4 | 2 1 1 Ballistic Cannon . | . . . Launcher . | . . . Special Weapon . | . . . Impact Weapon . | . . . Slashing Weapon . | . . . Piercing Weapon . | . . . Special Melee Weapon . | . . . Unidentified Prototypes . | . . . Parts Lost 6 | . 3 3 Power 2 | . 1 1 Propulsion . | . . . Utility 1 | . 1 . Weapon 3 | . 1 2 Highest Loss Streak 3 | . 3 3 To Critical Strikes . | . . . Average Slot Usage (%) 95 | . 95 98 Engine 13 | . 13 13 Treads 28 | . 28 28 Device 3 | . 4 . Storage 14 | . 14 14 Processor 6 | . 5 14 Energy Gun 2 | . . 12 Ballistic Gun 25 | . 28 14 Naked Turns . | . . . Heaviest Build 50 | 12 48 50 Greatest Support 40 | 40 40 40 Greatest Overweight (x) 1 | . 1 1 Average Overweight (x) . | . . 1 Largest Inventory Capacity 20 | 8 20 20 Average Capacity 15 | 6 14 20 Most Carried 13 | 4 13 12 Average Carried 9 | 3 9 11 Final Capacity 20 | 8 20 20 Final Carried 12 | 4 11 12 Class Distribution -------------------- 86% | Mutant 13% | Scavenger-Mutant Dominant Class ---------------- Mutant | -10/Materials Scavenger-Mutant | -10/Subcaves Resources | -11 -10 -10 ----------- Run | Yrd Mat Sub Matter Collected 781 | 151 580 50 Remotely . | . . . Salvage Created 713 | 72 543 98 Parts 64 | 7 46 11 Haulers Intercepted 2 | . 2 . Recyclers Shooed . | . . . Parts Field Recycled . | . . . Retrieved Matter . | . . . Parts Self-Destructed 5 | . . 5 Prevented . | . . . Kills | -11 -10 -10 ------- Run | Yrd Mat Sub Combat Hostiles Destroyed 14 | . 11 3 Guns 14 | . 11 3 Classes Destroyed 9 | 2 6 1 Worker 1 | . 1 . Builder 1 | . 1 . Tunneler 1 | 1 . . Hauler 2 | . 2 . Recycler 2 | 1 1 . Watcher 3 | . 3 . Swarmer 7 | . 6 1 Grunt 5 | . 5 . Subdweller 2 | . . 2 Best Kill Streak 5 | 2 5 2 Combat Bots Only 5 | . 5 2 Max Kills in Single Turn 2 | 1 2 1 Gunslinging . | . . . Exploded . | . . . Melee . | . . . Uniques/NPCs Destroyed . | . . . Combat | -11 -10 -10 -------- Run | Yrd Mat Sub Hostile Shots Fired 93 | . 56 37 Missed 13 | . 6 7 Damage Taken 1115 | . 522 593 Core 253 | . 120 133 Absorbed by Shields . | . . . Core Remaining (%) 100 | 100 . . Volleys Fired 75 | 3 54 18 Largest 2 | 2 2 2 Hottest 70 | 40 40 70 Shots Fired 144 | 6 107 31 Gun 144 | 6 107 31 Cannon . | . . . Launcher . | . . . Special . | . . . Kinetic 132 | 6 107 19 Thermal 12 | . . 12 Explosive . | . . . Electromagnetic . | . . . Robot Hit Streak 14 | 5 9 14 Robot Miss Streak 5 | 1 2 5 Penetration Max . | . . . Secondary Targets 3 | . 2 1 Max Gunslinging Chain 1 | . 1 1 Shots Hit Robots 97 | 5 70 22 Core Hits 38 | 3 28 7 Critical Kills 1 | . 1 . Critical Parts Destroyed 2 | . 2 . Critical Strikes 3 | . 3 . Destroy 3 | . 3 . Melee Attacks . | . . . Impact . | . . . Slashing . | . . . Piercing . | . . . Sneak Attacks . | . . . Combat Hostiles . | . . . Follow-up Attacks . | . . . Damage Inflicted 1098 | 50 789 259 Guns 1058 | 50 749 259 Cannons . | . . . Explosions . | . . . Melee . | . . . Ramming 40 | . 40 . Kinetic 959 | 50 749 160 Thermal 99 | . . 99 Explosive . | . . . Electromagnetic . | . . . Impact . | . . . Slashing . | . . . Piercing . | . . . Highest Corruption . | . . . Average Corruption . | . . . Corruption Purged . | . . . Corruption Blocked . | . . . Overload Shots . | . . . Overflow Damage . | . . . Projectiles . | . . . Explosions . | . . . Melee . | . . . Knockbacks 1 | . 1 . Impact 1 | . 1 . Kinetic . | . . . Secondary . | . . . Self-Inflicted Damage . | . . . Shots . | . . . Rammed 6 | . 6 . Targets Rammed 8 | . 8 . Kicked . | . . . Crushed 2 | . 2 . Highest Temperature 24 | . 24 . Average Temperature 8 | . 8 . Received Heat Transfer 291 | . 183 108 Siege Activations . | . . . Robots Corrupted . | . . . Combat Hostiles . | . . . Parts Fried . | . . . Impact Corruptions . | . . . Robots Melted . | . . . Combat Hostiles . | . . . Parts Melted 1 | . . 1 Heat Transferred 225 | . . 225 Parts Sabotaged . | . . . Parts Stolen . | . . . Parts Stripped . | . . . Power Chain Reactions . | . . . Alert | -11 -10 -10 ------- Run | Yrd Mat Sub Peak Influence 166 | 10 166 . Initial 6 | . 6 . Average 51 | 2 53 . Maximum Alert Level . | . . . Low Security (%) 100 | 100 100 . Level 1 . | . . . Level 2 . | . . . Level 3 . | . . . Level 4 . | . . . Level 5 . | . . . High Security . | . . . Max Security . | . . . Squads Dispatched 1 | . 1 . Investigation 1 | . 1 . Extermination . | . . . Reinforcement . | . . . Assault . | . . . Garrison . | . . . Intercept . | . . . Searches Triggered . | . . . Construction Impeded . | . . . Haulers Reinforced . | . . . Active Scanning Responses . | . . . Cargo Convoy Interrupts . | . . . Stealth | -11 -10 -10 --------- Run | Yrd Mat Sub Distress Signals 4 | . 4 . Communications Jammed . | . . . Distress Signals . | . . . Times Spotted 27 | . 22 5 Peak Tracking Total 5 | . 5 3 Tactical Retreats 2 | . 2 . Traps | -11 -10 -10 ------- Run | Yrd Mat Sub Traps Triggered 1 | . 1 . Indirectly . | . . . Trap Hack Attempts . | . . . Triggered . | . . . Disarmed . | . . . Reprogrammed . | . . . Reused . | . . . Traps Extracted . | . . . Installed . | . . . Triggered . | . . . Machines | -11 -10 -10 ---------- Run | Yrd Mat Sub Machines Disabled . | . . . Max in Single Turn . | . . . Machines Repaired . | . . . Machines Dismantled . | . . . Machines Sabotaged . | . . . Overloaded Fab Kills . | . . . Hacking | -11 -10 -10 --------- Run | Yrd Mat Sub Machines Accessed 6 | . 6 . Terminals 5 | . 5 . Fabricators . | . . . Repair Stations . | . . . Recycling Units 1 | . 1 . Scanalyzers . | . . . Garrison Access . | . . . Total Hacks 17 | . 17 . Successful 11 | . 11 . Failed 6 | . 6 . Catastrophic 2 | . 2 . Database Lockouts . | . . . Manual 13 | . 13 . Terminals 15 | . 15 . Fabricators . | . . . Repair Stations . | . . . Recycling Units 2 | . 2 . Scanalyzers . | . . . Garrison Access . | . . . Terminal Hacks 8 | . 8 . Robot Analysis 2 | . 2 . Branch Access Points 1 | . 1 . Emergency Access Points 1 | . 1 . Terminal Index 1 | . 1 . Alert Level 1 | . 1 . Investigation Status 1 | . 1 . Zone Layout 1 | . 1 . Fabricator Hacks . | . . . Repair Station Hacks . | . . . Recycling Unit Hacks . | . . . Scanalyzer . | . . . Garrison Access Hacks . | . . . Unauthorized Hacks 3 | . 3 . Terminals 2 | . 2 . Botnet 2 | . 2 . Fabricators . | . . . Repair Stations . | . . . Recycling Units 1 | . 1 . Reject 1 | . 1 . Scanalyzers . | . . . Garrison Access . | . . . Data Cores Recovered . | . . . Used . | . . . Hacking Detections 5 | . 5 . Full Trace Events . | . . . Feedback Events . | . . . Feedback Blocked . | . . . Robot Schematics Acquired . | . . . Robots Built . | . . . Authchips . | . . . Time . | . . . Total Robot Build Rating . | . . . Part Schematics Acquired . | . . . Parts Built . | . . . Authchips . | . . . Time . | . . . Total Part Build Rating . | . . . Parts Repaired . | . . . Time . | . . . Parts Recycled . | . . . Recycled Matter . | . . . Retrieved Matter . | . . . Retrieved Components . | . . . Parts Scanalyzed . | . . . Part Schematics Acquired . | . . . Parts Damaged . | . . . Bothacking | -11 -10 -10 ------------ Run | Yrd Mat Sub Used RIF Installer . | . . . Robots Hacked . | . . . Non-combat . | . . . Combat . | . . . Robot Hacks Applied . | . . . Relay Couplers Released . | . . . Fabnet Peak Effective % . | . . . Robots Rewired . | . . . Allies Hacked . | . . . Hacks Repelled . | . . . Allies | -11 -10 -10 -------- Run | Yrd Mat Sub Total Allies . | . . . Largest Group . | . . . Highest-Rated Group . | . . . Highest-Rated Ally . | . . . Total Orders . | . . . Ally Attacks . | . . . Total Damage . | . . . Kills . | . . . Allies Corrupted . | . . . Allies Melted . | . . . Intel | -11 -10 -10 ------- Run | Yrd Mat Sub Robot Analysis Total 2 | . 2 . Derelict Logs Recovered 1 | . . 1 Drone Launches . | . . . Drone Recoveries . | . . . Exploration | -11 -10 -10 ------------- Run | Yrd Mat Sub Turns Passed 3010 | 75 2438 497 Spaces Moved 1113 | 38 896 179 Core 10 | 10 . . Treads 1103 | 28 896 179 Legs . | . . . Wheels . | . . . Hover . | . . . Flight . | . . . Fastest Speed 50 | 50 160 240 Average Speed 212 | 131 210 240 Slowest Speed 240 | 160 240 240 Overloaded Moves . | . . . Propulsion Burnouts . | . . . Robots Hopped . | . . . Cave-ins Triggered . | . . . Exploration Rate (%) 38 | 4 98 12 Regions Visited 2 Branch Regions 1 Pre-discovered Areas . | . . . Known Exits Taken 1 | . 1 . Unknown Exits Taken 1 | 1 . . Scrap Searched . | . . . Spaces Dug . | . . . Terrain Destroyed . | . . . Melee . | . . . Projectile . | . . . AOE . | . . . Terrain Rammed . | . . . Walls Destroyed . | . . . Machines Disabled . | . . . Actions | -11 -10 -10 --------- Run | Yrd Mat Sub Total 1619 | 54 1347 218 Wait 379 | 3 363 13 Move 1111 | 37 895 179 Hop . | . . . Pick Up 18 | 4 12 2 Fast Attach 12 | 7 2 3 Attach 3 | . 2 1 Detach 2 | . 1 1 Swap 3 | . 3 . Drop 8 | . 7 1 Fire 75 | 3 54 18 Melee . | . . . Ram . | . . . Kick . | . . . Crush 8 | . 8 . Escape Stasis . | . . . Rewire . | . . . Trap . | . . . Miscellaneous . | . . . Route ------- -11/Scrapyard -10/Materials (discovered 5 exits: *Mat x3 / *Min / *Sub) -10/Subcaves History --------- Turn | Location | Event 13 | -11/Scrapyard | Discovered new exit (range 13) 76 | -11/Scrapyard | Entered Materials 306 | -10/Materials | Build established: Mutant 805 | -10/Materials | Discovered new exit (range 15) 829 | -10/Materials | Lost 3 parts (1p1u1w) 968 | -10/Materials | Discovered new exit (range 16) 1006 | -10/Materials | Identified exit to Mines 1268 | -10/Materials | Discovered new exit (range 8) 1533 | -10/Materials | Discovered new exit (range 16) 1568 | -10/Materials | Identified exit to Materials 2493 | -10/Materials | Discovered new exit (range 7) 2505 | -10/Materials | Identified exit to Subcaves 2514 | -10/Materials | Entered Subcaves 2535 | -10/Subcaves | Learned location of 1 exit from Materials 2582 | -10/Subcaves | Core integrity fell below 50% 2588 | -10/Subcaves | Core integrity fell below 20% 2620 | -10/Subcaves | Lost 3 parts (1p2w) 2913 | -10/Subcaves | Build established: Scavenger-Mutant 3011 | -10/Subcaves | Destroyed by S-10 Pest with Light Assault Rifle Last Messages --------------- 02596_ TC-5T6(R) destroyed. 02597_ Acquired 30 matter. 02601_ Subatomizers dissect the Sub. Power Source. 02603_ Acquired Sub. Power Source. 02609_ Acquired 10 matter. 02614_ Subatomizers dissect the Sub. Power Source. 02614_ Acquired Sub. Machine Gun. 02615_ Acquired 10 matter. 02620_ Acquired Battle Cannon. 02653_ Subatomizers dissect the Sub. Power Source. 02664_ Subatomizers dissect the Disposable Heat Sink. 02751_ Sub. Power Source shoots sparks and powers down. 02812_ Subatomizers dissect the Sub. Monowheel. 02848_ Subatomizers dissect the Disposable Heat Sink. 02849_ Dropped Lgt. Ion Engine. 02850_ Acquired Lgt. Ion Engine. 02854_ Acquired Sub. Power Source. 02859_ Subatomizers dissect the Disposable Heat Sink. 03011_ S-10 Pest destroyed. 03011_ Switching to secondary target: S-10 Pest. Map ----- +----------------------------------------------------+ | ?????????????????????????????????????????????????? | | ?????????????????????????????????????????????????? | | ?????????????????????????????????????????????????? | | ?????????????????????????????????????????????????? | | ?????????????????????????????????????????????????? | | ?????????????????????????????????????????????????? | | ?????????????????????????????????????????????????? | | ?????????????????????????????????????????????????? | | ?????????????????????????????????????????????????? | | ?????????????????????????????????????????????????? | | ???????????????????????#?????????????????????????? | | ??????????????????????? ?????????????????????##??? | | ??????????????????????? ????????????????????? "?? | | ??????????????????????? ????????????????????? ?? | | ??????????????????????? ???????????????????# "" | | ??????????????????????? ??????????????????## "# | | ??????????????????????? ??????????????????#"""""# | | ??????????????????????## ??????????????????#"""" # | | ??????????????????????? s??????????????????# # | | ??????????????????????? ?????????????????## "" | | ??????????????????????## ?????????????????# "" | | ??????????????????????# s##???????????????## "" | | ???????????????????#??#[% #######??????????##"" ## | | ?????????????????### # # # ###?????????#" ##? | | ?????????????????# ##??????### "#?? | | ?????????????????????# @ #?###### ### | | ?????????????????????# ### #### # # | | ?????????????????????# #?## # "" | | ?????????????????????## #?# # "" | | ??????????????????????# ##### #### ## | | ?????????????????????# ## ###??#### ### | | ?????????????????????# ### ####???????# #?# | | ?????????????????????## ##?####??????????## ##?? | | ??????????????????????#####?????????????????###??? | | ?????????????????????????????????????????????????? | | ?????????????????????????????????????????????????? | | ?????????????????????????????????????????????????? | | ?????????????????????????????????????????????????? | | ?????????????????????????????????????????????????? | | ?????????????????????????????????????????????????? | | ?????????????????????????????????????????????????? | | ?????????????????????????????????????????????????? | | ?????????????????????????????????????????????????? | | ?????????????????????????????????????????????????? | | ?????????????????????????????????????????????????? | | ?????????????????????????????????????????????????? | | ?????????????????????????????????????????????????? | | ?????????????????????????????????????????????????? | | | | | +----------------------------------------------------+ Best States ------------- Heat Dissipation 25 Energy Generation 15 Energy Capacity 250 Matter Stores 300 Matter Capacity 300 Sight Range 16 Terrain Scan Density 10 Evasion (%) 50 Recoil Reduction 2 Item Schematics ----------------- None Robot Schematics ------------------ None Fabricated ------------ Nothing Alien Tech Used ----------------- None Achievements -------------- None Challenges ------------ None Game ------ Seed StealthMasterTerrabomb Manual? 0 Play Time 00:13:28 Cumulative 68.4 hours Start 2024.07.16 @ 17:51:20 End 2024.07.16 @ 18:03:16 Sessions 1 Manual Loads 0 Difficulty Rogue Special Mode None Game No. 63 Rogue 63 Adventurer 0 Explorer 0 Win Type - Total 0 Types 0/0/0/0/0/0/0/0/0 Lore% 24 Gallery% 44 Achievement% 36 Wizard Run 0 Options --------- Layout 0 ASCII 0 Keyboard 1 Movement Numpad Keybinds 0 Fullscreen 2 Font 24/Smallcaps Map View 76x50 Zoom Use 0% Tactical HUD 1 Map Filters NONE Filters NONE Steam 1 RUN: ce70e6aa-7065-424d-8f79-183948e93379